[Event "*** Titled Tuesday Blitz"]
[Site "Chess.com"]
[Date "2018.04.03"]
[Round "2"]
[White "severomorskij"]
[Black "TastyFrenchFries"]
[Result "1-0"]
[WhiteElo "2663"]
[BlackElo "2293"]
[TimeControl "180+2"]
[EndTime "13:23:28 PDT"]
[Termination "severomorskij won by checkmate"]

1. d4 {[%clk 0:03:00]} 1... e6 {[%clk 0:03:01.9]} 2. Nf3 {[%clk 0:03:00.2]} 2...
Nf6 {[%clk 0:02:59.8]} 3. c4 {[%clk 0:03:00.4]} 3... Bb4+ {[%clk 0:02:54.4]} 4.
Nc3 {[%clk 0:02:58]} 4... O-O {[%clk 0:02:50.4]} 5. Bg5 {[%clk 0:02:57.4]} 5...
d5 {[%clk 0:02:33.5]} 6. e3 {[%clk 0:02:56.6]} 6... a6 {[%clk 0:02:07.5]} 7.
cxd5 {[%clk 0:02:53.9]} 7... exd5 {[%clk 0:02:09.4]} 8. Bd3 {[%clk 0:02:54.3]}
8... h6 {[%clk 0:02:08.9]} 9. Bh4 {[%clk 0:02:52.5]} 9... c6 {[%clk 0:02:05.3]}
10. O-O {[%clk 0:02:52.7]} 10... Nbd7 {[%clk 0:02:04.7]} 11. Ne5 {[%clk
0:02:50.4]} 11... Be7 {[%clk 0:01:58.5]} 12. f4 {[%clk 0:02:51.2]} 12... Nb6
{[%clk 0:01:54.9]} 13. Kh1 {[%clk 0:02:46]} 13... Nfd7 {[%clk 0:01:35.7]} 14.
Bg3 {[%clk 0:02:42.5]} 14... Nxe5 {[%clk 0:01:34.7]} 15. fxe5 {[%clk 0:02:43.3]}
15... Be6 {[%clk 0:01:35.5]} 16. Qh5 {[%clk 0:02:33.9]} 16... Qd7 {[%clk
0:01:33.7]} 17. h3 {[%clk 0:02:32.9]} 17... Nc4 {[%clk 0:01:33]} 18. Bxc4 {[%clk
0:02:28.9]} 18... dxc4 {[%clk 0:01:34.9]} 19. Ne4 {[%clk 0:02:29.8]} 19... Kh7
{[%clk 0:01:27.2]} 20. Bh4 {[%clk 0:02:15.8]} 20... Bd5 {[%clk 0:01:22]} 21.
Bxe7 {[%clk 0:02:13.7]} 21... Qxe7 {[%clk 0:01:23.9]} 22. Nf6+ {[%clk
0:01:31.1]} 22... Kh8 {[%clk 0:01:19.8]} 23. Rf4 {[%clk 0:01:27.2]} 23... b5
{[%clk 0:01:11.1]} 24. Raf1 {[%clk 0:01:27.7]} 24... Be6 {[%clk 0:01:09.7]} 25.
Rh4 {[%clk 0:01:24.8]} 25... Rg8 {[%clk 0:00:55.6]} 26. Rf3 {[%clk 0:01:18.8]}
26... Qf8 {[%clk 0:00:50.6]} 27. Rg3 {[%clk 0:01:10.5]} 27... b4 {[%clk
0:00:25.1]} 28. Nxg8 {[%clk 0:01:10]} 28... Qxg8 {[%clk 0:00:24.2]} 29. Qd1
{[%clk 0:01:07.1]} 29... Qd8 {[%clk 0:00:22.4]} 30. Rf4 {[%clk 0:00:55.3]} 30...
c5 {[%clk 0:00:19.2]} 31. Qc2 {[%clk 0:00:41.6]} 31... Qa5 {[%clk 0:00:17]} 32.
Qb1 {[%clk 0:00:20.9]} 32... Rd8 {[%clk 0:00:12.6]} 33. Rgf3 {[%clk 0:00:16.2]}
33... cxd4 {[%clk 0:00:12.5]} 34. exd4 {[%clk 0:00:16.1]} 34... c3 {[%clk
0:00:13.7]} 35. bxc3 {[%clk 0:00:16.7]} 35... bxc3 {[%clk 0:00:14.5]} 36. Qc2
{[%clk 0:00:16.5]} 36... Rc8 {[%clk 0:00:14]} 37. Rf2 {[%clk 0:00:17.4]} 37...
Bd5 {[%clk 0:00:13.6]} 38. Kh2 {[%clk 0:00:15.7]} 38... Qc7 {[%clk 0:00:12.3]}
39. Rg4 {[%clk 0:00:16]} 39... Qc4 {[%clk 0:00:11.3]} 40. Rg3 {[%clk 0:00:17]}
40... Qxd4 {[%clk 0:00:10.4]} 41. Qf5 {[%clk 0:00:17.5]} 41... Be6 {[%clk
0:00:10.2]} 42. Qc2 {[%clk 0:00:13.1]} 42... Qxf2 {[%clk 0:00:10]} 43. Qxf2
{[%clk 0:00:12.6]} 43... c2 {[%clk 0:00:11.9]} 44. Rxg7 {[%clk 0:00:10.4]} 44...
c1=Q {[%clk 0:00:13.8]} 45. Qf6 {[%clk 0:00:09.3]} 45... Qg5 {[%clk 0:00:13.5]}
46. Rxg5+ {[%clk 0:00:10]} 46... Kh7 {[%clk 0:00:13.9]} 47. Qg7# {[%clk
0:00:11]} 1-0

[Event "*** Titled Tuesday Blitz"]
[Site "Chess.com"]
[Date "2018.04.03"]
[Round "2"]
[White "Perecke"]
[Black "KRASAVCHIK2002"]
[Result "1-0"]
[WhiteElo "1886"]
[BlackElo "1952"]
[TimeControl "180+2"]
[EndTime "13:23:28 PDT"]
[Termination "Perecke won on time"]

1. e4 {[%clk 0:03:01.9]} 1... c5 {[%clk 0:02:58.4]} 2. Nf3 {[%clk 0:03:00.5]}
2... d6 {[%clk 0:02:59.5]} 3. d4 {[%clk 0:02:49.5]} 3... cxd4 {[%clk 0:02:58.6]}
4. Nxd4 {[%clk 0:02:51.4]} 4... Nf6 {[%clk 0:02:57.5]} 5. Nc3 {[%clk 0:02:51.3]}
5... a6 {[%clk 0:02:58.3]} 6. h3 {[%clk 0:02:51.6]} 6... e5 {[%clk 0:02:58.5]}
7. Nde2 {[%clk 0:02:51.3]} 7... h5 {[%clk 0:02:59.1]} 8. g3 {[%clk 0:02:52.3]}
8... Be7 {[%clk 0:02:57.4]} 9. Bg2 {[%clk 0:02:53.5]} 9... Be6 {[%clk
0:02:54.1]} 10. O-O {[%clk 0:02:54.2]} 10... Nbd7 {[%clk 0:02:54]} 11. f4 {[%clk
0:02:55.2]} 11... Qc7 {[%clk 0:02:33.7]} 12. Be3 {[%clk 0:02:32.9]} 12... b5
{[%clk 0:02:23.3]} 13. b3 {[%clk 0:02:30.1]} 13... Nc5 {[%clk 0:02:12.5]} 14. f5
{[%clk 0:02:24.8]} 14... Bd7 {[%clk 0:02:12.6]} 15. Bg5 {[%clk 0:02:25.2]} 15...
Bc6 {[%clk 0:02:12.8]} 16. Bxf6 {[%clk 0:02:21.4]} 16... Bxf6 {[%clk 0:02:13]}
17. Nd5 {[%clk 0:02:22.5]} 17... Bxd5 {[%clk 0:02:13.8]} 18. exd5 {[%clk
0:02:24.3]} 18... h4 {[%clk 0:02:03.6]} 19. g4 {[%clk 0:02:24.6]} 19... O-O
{[%clk 0:02:01.7]} 20. c4 {[%clk 0:02:24.2]} 20... bxc4 {[%clk 0:01:58.1]} 21.
bxc4 {[%clk 0:02:26.1]} 21... Qe7 {[%clk 0:01:54.3]} 22. Nc3 {[%clk 0:02:14.6]}
22... e4 {[%clk 0:01:42.3]} 23. Rc1 {[%clk 0:02:14.5]} 23... Qe5 {[%clk
0:01:41.9]} 24. Re1 {[%clk 0:02:09.1]} 24... Rfe8 {[%clk 0:01:24.2]} 25. Nxe4
{[%clk 0:01:56.9]} 25... Nxe4 {[%clk 0:01:24.3]} 26. Rxe4 {[%clk 0:01:57.7]}
26... Qg3 {[%clk 0:01:25.2]} 27. Qf3 {[%clk 0:01:48.1]} 27... Rxe4 {[%clk
0:00:53.3]} 28. Qxg3 {[%clk 0:01:20.1]} 28... hxg3 {[%clk 0:00:40.1]} 29. Bxe4
{[%clk 0:01:20.2]} 29... Rb8 {[%clk 0:00:41.4]} 30. Rc2 {[%clk 0:01:18.7]} 30...
Re8 {[%clk 0:00:28.4]} 31. Re2 {[%clk 0:01:08.7]} 31... Be5 {[%clk 0:00:11]} 32.
Kg2 {[%clk 0:01:05.4]} 32... Rc8 {[%clk 0:00:11.5]} 33. Bd3 {[%clk 0:01:04.4]}
33... f6 {[%clk 0:00:12.8]} 34. h4 {[%clk 0:01:02.3]} 34... Rb8 {[%clk
0:00:12.3]} 35. g5 {[%clk 0:01:03.4]} 35... Rb4 {[%clk 0:00:10.7]} 36. gxf6
{[%clk 0:00:58]} 36... gxf6 {[%clk 0:00:11.3]} 37. Kh3 {[%clk 0:00:56.3]} 37...
Ra4 {[%clk 0:00:12.3]} 38. c5 {[%clk 0:00:41.1]} 38... dxc5 {[%clk 0:00:11]} 39.
Rc2 {[%clk 0:00:39.6]} 39... Ra3 {[%clk 0:00:07.7]} 40. Bc4 {[%clk 0:00:33.9]}
40... Bd6 {[%clk 0:00:05.3]} 41. Re2 {[%clk 0:00:29.8]} 41... Be5 {[%clk
0:00:04.9]} 42. Re4 {[%clk 0:00:20.9]} 42... Kf8 {[%clk 0:00:03.7]} 43. h5
{[%clk 0:00:21.9]} 1-0

[Event "*** Titled Tuesday Blitz"]
[Site "Chess.com"]
[Date "2018.04.03"]
[Round "2"]
[White "Bigfish1995"]
[Black "ViktorMatviishen"]
[Result "1-0"]
[WhiteElo "2773"]
[BlackElo "2551"]
[TimeControl "180+2"]
[EndTime "13:23:30 PDT"]
[Termination "Bigfish1995 won by resignation"]

1. e4 {[%clk 0:03:01.9]} 1... c5 {[%clk 0:02:59.8]} 2. Nf3 {[%clk 0:03:02.3]}
2... d6 {[%clk 0:02:59.9]} 3. d4 {[%clk 0:03:00.7]} 3... cxd4 {[%clk 0:03:01.2]}
4. Nxd4 {[%clk 0:03:01.6]} 4... Nf6 {[%clk 0:03:02.1]} 5. Nc3 {[%clk 0:03:02.6]}
5... a6 {[%clk 0:03:03.4]} 6. f3 {[%clk 0:02:49.3]} 6... e5 {[%clk 0:03:03.2]}
7. Nb3 {[%clk 0:02:49.2]} 7... Be6 {[%clk 0:03:02.8]} 8. Be3 {[%clk 0:02:49.9]}
8... Nbd7 {[%clk 0:02:57.4]} 9. Qd2 {[%clk 0:02:46.3]} 9... Be7 {[%clk
0:02:57.5]} 10. g4 {[%clk 0:02:44.7]} 10... b5 {[%clk 0:02:51.6]} 11. g5 {[%clk
0:02:44.8]} 11... b4 {[%clk 0:02:52.9]} 12. Ne2 {[%clk 0:02:36.6]} 12... Nh5
{[%clk 0:02:53.1]} 13. Ng3 {[%clk 0:02:32.2]} 13... Nxg3 {[%clk 0:02:29.3]} 14.
hxg3 {[%clk 0:02:32.3]} 14... a5 {[%clk 0:02:31]} 15. Bh3 {[%clk 0:02:15.8]}
15... a4 {[%clk 0:02:18.4]} 16. Nc1 {[%clk 0:02:13.3]} 16... Bxh3 {[%clk
0:02:14.7]} 17. Rxh3 {[%clk 0:02:13.1]} 17... O-O {[%clk 0:01:21]} 18. Nd3
{[%clk 0:02:06.7]} 18... b3 {[%clk 0:01:22.4]} 19. Nb4 {[%clk 0:01:44.4]} 19...
Qc8 {[%clk 0:01:11.9]} 20. Qh2 {[%clk 0:01:35.1]} 20... h6 {[%clk 0:00:57.5]}
21. gxh6 {[%clk 0:01:35.5]} 21... g6 {[%clk 0:00:58.9]} 22. h7+ {[%clk
0:01:23.2]} 22... Kh8 {[%clk 0:01:00.2]} 23. Nd5 {[%clk 0:01:23.3]} 23... Bd8
{[%clk 0:00:59.8]} 24. Bh6 {[%clk 0:01:20.8]} 24... bxc2 {[%clk 0:00:56.7]} 25.
Rc1 {[%clk 0:01:13.6]} 25... Ba5+ {[%clk 0:00:53]} 26. Bd2 {[%clk 0:00:52.3]}
26... Bxd2+ {[%clk 0:00:53.3]} 27. Qxd2 {[%clk 0:00:51.5]} 27... Qc5 {[%clk
0:00:49.7]} 28. Ne3 {[%clk 0:00:39.5]} 28... Rac8 {[%clk 0:00:28.6]} 29. Rxc2
{[%clk 0:00:40]} 29... Qb6 {[%clk 0:00:29.2]} 30. Rxc8 {[%clk 0:00:30.7]} 30...
Rxc8 {[%clk 0:00:31.1]} 31. Kf1 {[%clk 0:00:26.6]} 31... Nf6 {[%clk 0:00:29.9]}
32. Rh2 {[%clk 0:00:25.6]} 32... Qd4 {[%clk 0:00:25.9]} 33. Qxd4 {[%clk
0:00:23.8]} 33... exd4 {[%clk 0:00:27.8]} 34. Nd1 {[%clk 0:00:16.8]} 34... d5
{[%clk 0:00:22.8]} 35. e5 {[%clk 0:00:17.4]} 35... Nd7 {[%clk 0:00:21.5]} 36. f4
{[%clk 0:00:17.4]} 36... Nc5 {[%clk 0:00:22.5]} 37. Rc2 {[%clk 0:00:18]} 37...
d3 {[%clk 0:00:22.7]} 38. Rc3 {[%clk 0:00:18.9]} 38... Kxh7 {[%clk 0:00:21.6]}
39. Nf2 {[%clk 0:00:19.6]} 39... d4 {[%clk 0:00:22]} 40. Rc4 {[%clk 0:00:20.2]}
40... d2 {[%clk 0:00:17.5]} 41. Ke2 {[%clk 0:00:21.3]} 41... Rc7 {[%clk
0:00:16.6]} 42. Nd3 {[%clk 0:00:14.2]} 42... Ne6 {[%clk 0:00:13.7]} 43. Rxc7
{[%clk 0:00:15.6]} 43... Nxc7 {[%clk 0:00:15.6]} 44. Nc5 {[%clk 0:00:16.5]}
44... Nd5 {[%clk 0:00:15.5]} 45. Nxa4 {[%clk 0:00:16.8]} 45... Ne3 {[%clk
0:00:15.4]} 46. Kxd2 {[%clk 0:00:18.1]} 46... Nf1+ {[%clk 0:00:13.6]} 47. Kd3
{[%clk 0:00:19.3]} 47... Nxg3 {[%clk 0:00:15.5]} 48. Nc5 {[%clk 0:00:20.4]}
48... Ne2 {[%clk 0:00:17.1]} 1-0

[Event "*** Titled Tuesday Blitz"]
[Site "Chess.com"]
[Date "2018.04.03"]
[Round "2"]
[White "1random"]
[Black "FearNoEvil12"]
[Result "1-0"]
[WhiteElo "2157"]
[BlackElo "1978"]
[TimeControl "180+2"]
[EndTime "13:23:33 PDT"]
[Termination "1random won by resignation"]

1. Nf3 {[%clk 0:02:59.4]} 1... a6 {[%clk 0:03:00.8]} 2. e3 {[%clk 0:02:55.8]}
2... b5 {[%clk 0:03:01.6]} 3. c4 {[%clk 0:02:56.2]} 3... bxc4 {[%clk 0:02:59]}
4. Bxc4 {[%clk 0:02:58.1]} 4... e6 {[%clk 0:03:00.1]} 5. d4 {[%clk 0:02:55.2]}
5... Nf6 {[%clk 0:03:01.2]} 6. O-O {[%clk 0:02:55.7]} 6... Bb7 {[%clk
0:03:02.1]} 7. Nc3 {[%clk 0:02:56.5]} 7... Nc6 {[%clk 0:03:01.9]} 8. e4 {[%clk
0:02:51]} 8... h6 {[%clk 0:03:00.1]} 9. e5 {[%clk 0:02:38.5]} 9... Ng8 {[%clk
0:02:59.2]} 10. Re1 {[%clk 0:02:39.2]} 10... Nge7 {[%clk 0:02:57.6]} 11. Bf4
{[%clk 0:02:33.1]} 11... g5 {[%clk 0:02:56.8]} 12. Bg3 {[%clk 0:02:34.2]} 12...
Rg8 {[%clk 0:02:56.8]} 13. a3 {[%clk 0:02:07.5]} 13... Nf5 {[%clk 0:02:52.9]}
14. d5 {[%clk 0:02:06]} 14... Nce7 {[%clk 0:02:44.1]} 15. Ne4 {[%clk 0:01:59]}
15... Bg7 {[%clk 0:02:34.1]} 16. d6 {[%clk 0:00:55]} 16... Nc6 {[%clk
0:02:33.4]} 17. dxc7 {[%clk 0:00:53.2]} 17... Qxc7 {[%clk 0:02:33.7]} 18. Nd6+
{[%clk 0:00:54.3]} 18... Nxd6 {[%clk 0:02:31.7]} 19. exd6 {[%clk 0:00:56.2]}
19... Qa5 {[%clk 0:02:29.8]} 20. b4 {[%clk 0:00:53.7]} 20... Qf5 {[%clk
0:02:24.7]} 21. Rc1 {[%clk 0:00:43.4]} 21... h5 {[%clk 0:02:23.6]} 22. h4 {[%clk
0:00:42.6]} 22... gxh4 {[%clk 0:02:20.2]} 23. Nxh4 {[%clk 0:00:43.4]} 23... Qg4
{[%clk 0:02:16.1]} 24. Be2 {[%clk 0:00:42.4]} 24... Qg5 {[%clk 0:02:09.3]} 25.
Bxh5 {[%clk 0:00:41.4]} 25... Bd4 {[%clk 0:02:03.1]} 26. Qf3 {[%clk 0:00:27.4]}
26... O-O-O {[%clk 0:01:31.6]} 27. Kf1 {[%clk 0:00:24.3]} 27... f5 {[%clk
0:01:22.7]} 28. a4 {[%clk 0:00:21.1]} 28... Kb8 {[%clk 0:01:19]} 29. Qd1 {[%clk
0:00:21.8]} 29... f4 {[%clk 0:01:02]} 30. Bf7 {[%clk 0:00:17.4]} 30... fxg3
{[%clk 0:00:58]} 31. Bxg8 {[%clk 0:00:16.9]} 31... gxf2 {[%clk 0:00:51.8]} 32.
Re4 {[%clk 0:00:17.6]} 32... Rxg8 {[%clk 0:00:38.5]} 33. Qe2 {[%clk 0:00:15]}
33... Ba7 {[%clk 0:00:30.9]} 34. Rc3 {[%clk 0:00:11.6]} 34... Nd4 {[%clk
0:00:29.3]} 35. Qxf2 {[%clk 0:00:09.6]} 35... Bxe4 {[%clk 0:00:27.1]} 36. b5
{[%clk 0:00:09.3]} 36... Nf5 {[%clk 0:00:16.4]} 37. b6 {[%clk 0:00:08.7]} 37...
Nxh4 {[%clk 0:00:14.2]} 38. bxa7+ {[%clk 0:00:09.2]} 38... Ka8 {[%clk
0:00:14.3]} 39. g3 {[%clk 0:00:09.2]} 39... Nf3 {[%clk 0:00:13.2]} 40. Rb3
{[%clk 0:00:06.4]} 40... Qxg3 {[%clk 0:00:10.6]} 41. Rb8+ {[%clk 0:00:05.6]}
41... Rxb8 {[%clk 0:00:09.9]} 42. axb8=Q+ {[%clk 0:00:07.5]} 42... Kxb8 {[%clk
0:00:10.2]} 43. Qxg3 {[%clk 0:00:08.3]} 43... Bc6 {[%clk 0:00:10.3]} 44. Qf2
{[%clk 0:00:07.8]} 44... Kb7 {[%clk 0:00:10.5]} 45. a5 {[%clk 0:00:08.8]} 45...
Kc8 {[%clk 0:00:07.6]} 46. Qb6 {[%clk 0:00:09.3]} 1-0

[Event "*** Titled Tuesday Blitz"]
[Site "Chess.com"]
[Date "2018.04.03"]
[Round "2"]
[White "blitzcopter"]
[Black "chesstatour"]
[Result "1-0"]
[WhiteElo "2145"]
[BlackElo "1972"]
[TimeControl "180+2"]
[EndTime "13:23:34 PDT"]
[Termination "blitzcopter won on time"]

1. e4 {[%clk 0:03:01.8]} 1... c6 {[%clk 0:03:00.7]} 2. Nc3 {[%clk 0:02:55.4]}
2... d5 {[%clk 0:03:01.2]} 3. Nf3 {[%clk 0:02:51.1]} 3... dxe4 {[%clk
0:03:01.3]} 4. Nxe4 {[%clk 0:02:51.1]} 4... Nf6 {[%clk 0:03:02.3]} 5. Ng3 {[%clk
0:02:52.1]} 5... h5 {[%clk 0:03:02.2]} 6. h4 {[%clk 0:02:46.4]} 6... Bg4 {[%clk
0:03:01.8]} 7. Bc4 {[%clk 0:02:46.5]} 7... e6 {[%clk 0:03:02.1]} 8. d3 {[%clk
0:02:45.7]} 8... Nbd7 {[%clk 0:02:54.7]} 9. Bg5 {[%clk 0:02:45.8]} 9... Ne5
{[%clk 0:02:44.9]} 10. Qe2 {[%clk 0:02:21.9]} 10... Bxf3 {[%clk 0:02:31.2]} 11.
gxf3 {[%clk 0:02:23.8]} 11... Nxc4 {[%clk 0:02:30.1]} 12. dxc4 {[%clk
0:02:23.5]} 12... Qc7 {[%clk 0:02:07.2]} 13. O-O-O {[%clk 0:02:15]} 13... Be7
{[%clk 0:01:18.9]} 14. f4 {[%clk 0:01:47.3]} 14... Rd8 {[%clk 0:00:58.1]} 15.
Bxf6 {[%clk 0:01:17.9]} 15... gxf6 {[%clk 0:00:46.2]} 16. Nxh5 {[%clk 0:01:06]}
16... Qa5 {[%clk 0:00:30.8]} 17. Rxd8+ {[%clk 0:00:34.1]} 17... Bxd8 {[%clk
0:00:27.9]} 18. Re1 {[%clk 0:00:17.5]} 18... Qxh5 {[%clk 0:00:24.5]} 19. Qd3
{[%clk 0:00:17.9]} 19... Bc7 {[%clk 0:00:19.4]} 20. f5 {[%clk 0:00:17.9]} 20...
Bf4+ {[%clk 0:00:06.5]} 21. Kb1 {[%clk 0:00:17.9]} 21... O-O {[%clk 0:00:05.6]}
22. fxe6 {[%clk 0:00:13.7]} 22... fxe6 {[%clk 0:00:06.5]} 23. Rg1+ {[%clk
0:00:12.7]} 23... Kh8 {[%clk 0:00:04.4]} 24. Qd7 {[%clk 0:00:11.9]} 24... Qf7
{[%clk 0:00:05.3]} 25. Qd4 {[%clk 0:00:08.4]} 25... e5 {[%clk 0:00:06.3]} 26.
Qd1 {[%clk 0:00:05.9]} 26... Qh7 {[%clk 0:00:05.6]} 27. Qd6 {[%clk 0:00:05.7]}
27... Qf7 {[%clk 0:00:04.5]} 28. Qd1 {[%clk 0:00:06]} 28... Rg8 {[%clk
0:00:04.2]} 29. Rxg8+ {[%clk 0:00:03.3]} 29... Kxg8 {[%clk 0:00:05.1]} 30. Qg4+
{[%clk 0:00:04.7]} 30... Kh7 {[%clk 0:00:03.8]} 31. Qf5+ {[%clk 0:00:05.2]}
31... Qg6 {[%clk 0:00:04.9]} 32. Qd7+ {[%clk 0:00:06.3]} 32... Qg7 {[%clk
0:00:06.1]} 33. Qf5+ {[%clk 0:00:06.9]} 33... Kh6 {[%clk 0:00:05.9]} 34. a3
{[%clk 0:00:07.9]} 34... Qg6 {[%clk 0:00:05.7]} 35. Qd7 {[%clk 0:00:07.8]} 35...
e4 {[%clk 0:00:05.5]} 36. Qxb7 {[%clk 0:00:07.3]} 36... f5 {[%clk 0:00:04.9]}
37. Qe7 {[%clk 0:00:07.1]} 37... Qd6 {[%clk 0:00:03.6]} 38. Qf7 {[%clk
0:00:02.9]} 1-0

[Event "*** Titled Tuesday Blitz"]
[Site "Chess.com"]
[Date "2018.04.03"]
[Round "2"]
[White "BilodeauA"]
[Black "a_kandil"]
[Result "1-0"]
[WhiteElo "2643"]
[BlackElo "2299"]
[TimeControl "180+2"]
[EndTime "13:23:35 PDT"]
[Termination "BilodeauA won by resignation"]

1. e4 {[%clk 0:03:01.9]} 1... c5 {[%clk 0:03:00.4]} 2. Nf3 {[%clk 0:03:02.5]}
2... d6 {[%clk 0:03:01.8]} 3. d4 {[%clk 0:03:03]} 3... cxd4 {[%clk 0:03:03.7]}
4. Nxd4 {[%clk 0:03:04.5]} 4... Nf6 {[%clk 0:03:05.6]} 5. Nc3 {[%clk 0:03:05.7]}
5... a6 {[%clk 0:03:06.4]} 6. Be2 {[%clk 0:03:06.6]} 6... e5 {[%clk 0:03:06.9]}
7. Nb3 {[%clk 0:03:07.8]} 7... Be6 {[%clk 0:03:07.4]} 8. f4 {[%clk 0:03:06.9]}
8... exf4 {[%clk 0:03:06.4]} 9. Bxf4 {[%clk 0:03:07.5]} 9... Nc6 {[%clk
0:03:05.6]} 10. O-O {[%clk 0:03:08]} 10... d5 {[%clk 0:03:03.2]} 11. exd5 {[%clk
0:03:01.3]} 11... Nxd5 {[%clk 0:03:03.7]} 12. Nxd5 {[%clk 0:03:02.1]} 12... Qxd5
{[%clk 0:03:05.6]} 13. Bf3 {[%clk 0:02:59.3]} 13... Qxd1 {[%clk 0:03:05.4]} 14.
Raxd1 {[%clk 0:03:01.2]} 14... Be7 {[%clk 0:02:55.9]} 15. c3 {[%clk 0:02:42.4]}
15... O-O {[%clk 0:02:52.4]} 16. Bd6 {[%clk 0:02:43.8]} 16... Bxd6 {[%clk
0:01:57.5]} 17. Rxd6 {[%clk 0:02:43.9]} 17... Rfd8 {[%clk 0:01:58.5]} 18. Rfd1
{[%clk 0:02:43.3]} 18... Rxd6 {[%clk 0:02:00]} 19. Rxd6 {[%clk 0:02:45.2]} 19...
Rd8 {[%clk 0:02:01.3]} 20. Rxd8+ {[%clk 0:02:45.4]} 20... Nxd8 {[%clk
0:02:03.2]} 21. Nc5 {[%clk 0:02:25.1]} 21... Bc8 {[%clk 0:02:04.3]} 22. Kf2
{[%clk 0:02:24.4]} 22... b6 {[%clk 0:02:04.1]} 23. Na4 {[%clk 0:02:23.9]} 23...
b5 {[%clk 0:02:02.6]} 24. Nc5 {[%clk 0:02:18.6]} 24... Kf8 {[%clk 0:02:04]} 25.
Ke3 {[%clk 0:02:18.2]} 25... Ke7 {[%clk 0:02:05]} 26. b4 {[%clk 0:02:15.1]}
26... Kd6 {[%clk 0:02:05.1]} 27. Be4 {[%clk 0:02:08.3]} 27... f5 {[%clk
0:02:02.3]} 28. Bf3 {[%clk 0:02:03.8]} 28... g5 {[%clk 0:02:02.7]} 29. g3 {[%clk
0:02:03.2]} 29... Ne6 {[%clk 0:01:42]} 30. Nd3 {[%clk 0:01:48.9]} 30... h6
{[%clk 0:01:28.7]} 31. a3 {[%clk 0:01:49.8]} 31... Nc7 {[%clk 0:01:27.8]} 32.
Nc5 {[%clk 0:01:48.8]} 32... Ne6 {[%clk 0:01:26.6]} 33. Nxe6 {[%clk 0:01:48.2]}
33... Bxe6 {[%clk 0:01:16.4]} 34. Kd4 {[%clk 0:01:49.3]} 34... Bd7 {[%clk
0:00:56.1]} 35. Bd5 {[%clk 0:00:56]} 35... Be6 {[%clk 0:00:33.2]} 36. Bb7 {[%clk
0:00:51.5]} 36... Kc7 {[%clk 0:00:32.7]} 37. Bf3 {[%clk 0:00:49.3]} 37... Kd6
{[%clk 0:00:32.4]} 38. Bg2 {[%clk 0:00:49.6]} 38... Bd7 {[%clk 0:00:32.3]} 39.
Bf1 {[%clk 0:00:48.6]} 39... Bc6 {[%clk 0:00:32]} 40. c4 {[%clk 0:00:49]} 40...
f4 {[%clk 0:00:25.1]} 41. c5+ {[%clk 0:00:49.9]} 41... Ke6 {[%clk 0:00:25.9]}
42. Bh3+ {[%clk 0:00:51.1]} 42... Kf6 {[%clk 0:00:25.5]} 43. Bc8 {[%clk
0:00:52.4]} 43... fxg3 {[%clk 0:00:15.1]} 44. hxg3 {[%clk 0:00:53.5]} 44... h5
{[%clk 0:00:16.3]} 45. Bxa6 {[%clk 0:00:54.8]} 45... h4 {[%clk 0:00:17.7]} 46.
gxh4 {[%clk 0:00:56.2]} 46... gxh4 {[%clk 0:00:17.4]} 47. Bc8 {[%clk 0:00:57.7]}
47... Ba8 {[%clk 0:00:15.6]} 48. Bd7 {[%clk 0:00:53.6]} 48... Bg2 {[%clk
0:00:16.1]} 49. Ke3 {[%clk 0:00:50.9]} 49... Ke5 {[%clk 0:00:15.2]} 50. Bxb5
{[%clk 0:00:50.1]} 50... Bd5 {[%clk 0:00:14.4]} 51. Bf1 {[%clk 0:00:47.5]} 51...
Bc6 {[%clk 0:00:14.3]} 52. Bh3 {[%clk 0:00:45.2]} 52... Kd5 {[%clk 0:00:15.2]}
53. Bg2+ {[%clk 0:00:46.1]} 53... Kc4 {[%clk 0:00:16.7]} 54. Bxc6 {[%clk
0:00:47.1]} 1-0

[Event "*** Titled Tuesday Blitz"]
[Site "Chess.com"]
[Date "2018.04.03"]
[Round "2"]
[White "dimke2802"]
[Black "Vincent_Vega95"]
[Result "1-0"]
[WhiteElo "2318"]
[BlackElo "2524"]
[TimeControl "180+2"]
[EndTime "13:23:38 PDT"]
[Termination "dimke2802 won by resignation"]

1. d4 {[%clk 0:03:01.9]} 1... Nf6 {[%clk 0:02:52.8]} 2. c4 {[%clk 0:03:02]} 2...
g6 {[%clk 0:02:53.5]} 3. Nf3 {[%clk 0:03:02.9]} 3... Bg7 {[%clk 0:02:53.8]} 4.
g3 {[%clk 0:03:04.3]} 4... b6 {[%clk 0:02:55.1]} 5. Bg2 {[%clk 0:03:04.6]} 5...
Bb7 {[%clk 0:02:56.4]} 6. O-O {[%clk 0:03:05]} 6... O-O {[%clk 0:02:57.5]} 7.
Nc3 {[%clk 0:03:06.1]} 7... Ne4 {[%clk 0:02:58.3]} 8. Nxe4 {[%clk 0:03:05.8]}
8... Bxe4 {[%clk 0:02:58.7]} 9. Be3 {[%clk 0:03:06.9]} 9... c5 {[%clk 0:02:57]}
10. Qd2 {[%clk 0:03:03.2]} 10... d6 {[%clk 0:02:50.6]} 11. Rad1 {[%clk
0:02:57.4]} 11... Nd7 {[%clk 0:02:51.1]} 12. Bh3 {[%clk 0:02:55.2]} 12... Nf6
{[%clk 0:02:41]} 13. d5 {[%clk 0:02:51.4]} 13... b5 {[%clk 0:02:39.4]} 14. b3
{[%clk 0:02:32.2]} 14... Rb8 {[%clk 0:02:28.8]} 15. Bh6 {[%clk 0:02:30.5]} 15...
Bxf3 {[%clk 0:01:59.4]} 16. exf3 {[%clk 0:02:30]} 16... bxc4 {[%clk 0:02:00.7]}
17. bxc4 {[%clk 0:02:30.5]} 17... Rb4 {[%clk 0:02:02.2]} 18. Rc1 {[%clk
0:02:19.5]} 18... Qb6 {[%clk 0:01:59.6]} 19. Bxg7 {[%clk 0:02:15.6]} 19... Kxg7
{[%clk 0:02:00.6]} 20. Rfe1 {[%clk 0:02:16.5]} 20... Re8 {[%clk 0:02:01.8]} 21.
f4 {[%clk 0:02:13.2]} 21... Qa6 {[%clk 0:01:57.9]} 22. Bf1 {[%clk 0:02:08.4]}
22... Qa3 {[%clk 0:01:56.4]} 23. Rc3 {[%clk 0:02:05.5]} 23... Qb2 {[%clk
0:01:38.7]} 24. Rc2 {[%clk 0:01:47.6]} 24... Qa3 {[%clk 0:01:29.2]} 25. Rc3
{[%clk 0:01:34.9]} 25... Qb2 {[%clk 0:01:29.8]} 26. Rc2 {[%clk 0:01:32.4]} 26...
Qd4 {[%clk 0:01:30.6]} 27. Qc1 {[%clk 0:01:23.6]} 27... Nd7 {[%clk 0:01:22.8]}
28. Qa3 {[%clk 0:01:11.1]} 28... Reb8 {[%clk 0:00:59.7]} 29. Rxe7 {[%clk
0:01:01.4]} 29... Rb2 {[%clk 0:00:59.5]} 30. Rce2 {[%clk 0:00:36.8]} 30... Rxe2
{[%clk 0:00:46.2]} 31. Bxe2 {[%clk 0:00:37.7]} 31... Nf6 {[%clk 0:00:20.7]} 32.
Qxa7 {[%clk 0:00:19.9]} 32... Rf8 {[%clk 0:00:21.3]} 33. Bf3 {[%clk 0:00:18.4]}
33... Qxc4 {[%clk 0:00:22]} 34. a4 {[%clk 0:00:18.1]} 34... Qd3 {[%clk
0:00:22.9]} 35. Re3 {[%clk 0:00:16.5]} 35... Qb1+ {[%clk 0:00:18.7]} 36. Kg2
{[%clk 0:00:17.1]} 36... h5 {[%clk 0:00:19.9]} 37. h4 {[%clk 0:00:17.2]} 37...
Rb8 {[%clk 0:00:18.5]} 38. Re7 {[%clk 0:00:16]} 38... Rf8 {[%clk 0:00:19.4]} 39.
a5 {[%clk 0:00:17]} 39... Qa2 {[%clk 0:00:20.4]} 40. a6 {[%clk 0:00:17.4]} 40...
Nxd5 {[%clk 0:00:21.4]} 41. Rd7 {[%clk 0:00:11.7]} 41... Ne3+ {[%clk 0:00:22.1]}
42. Kh3 {[%clk 0:00:10.8]} 42... Qxf2 {[%clk 0:00:22.2]} 43. Qb7 {[%clk
0:00:11.5]} 43... Qf1+ {[%clk 0:00:20.5]} 44. Bg2 {[%clk 0:00:12.7]} 44... Qe2
{[%clk 0:00:19.8]} 45. a7 {[%clk 0:00:12.2]} 45... Qg4+ {[%clk 0:00:20.6]} 46.
Kh2 {[%clk 0:00:13.4]} 46... Qe2 {[%clk 0:00:20]} 47. a8=Q {[%clk 0:00:14.2]}
47... Rxa8 {[%clk 0:00:20.6]} 48. Rxf7+ {[%clk 0:00:15.3]} 48... Kg8 {[%clk
0:00:20.5]} 49. Rg7+ {[%clk 0:00:16.4]} 1-0